[Event "Polish Youth G18 Championship 2023"]
[Site "Jastrzebia Gora"]
[Date "2023.03.19"]
[Round "9.5"]
[White "Barwinska, Ewa"]
[Black "Bugaj, Hanna"]
[Result "1/2-1/2"]
[ECO "B24"]
[WhiteElo "1963"]
[BlackElo "1639"]
[Annotator "TA"]
[PlyCount "67"]
[EventDate "2023.03.11"]
[EventType "swiss"]
[EventCountry "POL"]
[SourceTitle "playchess.com"]
[Source "ChessBase"]
[SourceQuality "1"]
[TimeControl "40/5400+30:1800+30"]

{[%evp 9,67,10,14,0,0,0,8,6,9,-45,68,7,3,-55,65,0,0,0,0,0,0,0,0,0,0,0,24,15,31,33,44,39,30,0,0,0,0,0,0,0,0,0,0,0,0,0,16,0,20,0,0,0,0,0,0,0,0,0,0,0]} 1. e4 {[%emt 0:00:02]} c5 {[%emt 0:00:09]} 2. Nc3 {[%emt 0:00:06]} Nc6 {[%emt 0:00:40]} 3. Bb5 {[%emt 0:00:09]} Nf6 {[%emt 0:00:29]} 4. Bxc6 {[%emt 0:00:14]} dxc6 {[%emt 0:00:08]} 5. d3 {[%emt 0:04:42]} e5 {[%emt 0:00:51]} 6. f4 {[%emt 0:08:36][%cal Bf2f4,Bf4f5][%mdl 32] B23: Closed Sicilian: Lines without g3.} Bg4 {[%emt 0:08:45]} 7. Nf3 {[%emt 0:02:00]} Bd6 {[%emt 0:02:19]} 8. f5 {[%emt 0:03:49] [#]} Qb6 $146 {[%emt 0:02:41][%cal Oc5c4]} ({Predecessor:} 8... Nd7 9. h3 Bxf3 10. Qxf3 Be7 11. Be3 h5 12. g3 Bg5 13. Bf2 Qe7 14. O-O h4 {1-0 Cherniaev,A (2420)-Varlamov,V (2305) St Petersburg op 1993}) 9. b3 {[%emt 0:12:54]} (9. h3 $11 Bxf3 10. Qxf3) 9... O-O-O {[%emt 0:09:11]} (9... c4 $1 $15 10. Na4 Qa5+ 11. Bd2 Qa6) 10. Na4 {[%emt 0:03:49]} (10. Bd2 $14) 10... Qc7 $11 {[%emt 0:02:28][%cal Oc5c4]} 11. Bd2 {[%emt 0:04:27]} ({White should try} 11. O-O $11) 11... Kb8 {[%emt 0:08:44]} ({Better is} 11... Bxf5 $1 $15 12. O-O (12. exf5 e4 $17) 12... Be6) 12. h3 {[%emt 0:03:43]} (12. O-O $14) 12... Bxf5 $1 {[%emt 0:12:56]} 13. exf5 {[%emt 0:03:11] [#] Nc3 would be deadly.} e4 {[%emt 0:00:15]} 14. O-O $1 {[%emt 0:02:57] Black must now prevent Ng5.} exf3 {[%emt 0:00:25]} 15. Qxf3 {[%emt 0:01:25]} Nd5 {[%emt 0:04:11]} 16. Rac1 {[%emt 0:10:48]} Rhe8 {[%emt 0:04:19]} 17. Nc3 {[%emt 0:08:58]} Nxc3 {[%emt 0:01:05]} 18. Bxc3 {[%emt 0:00:02]} f6 {[%emt 0:00:55]} 19. Rce1 {[%emt 0:02:43]} Be5 {[%emt 0:04:32]} 20. Bxe5 {[%emt 0:07:20]} Rxe5 {[%emt 0:00:14]} 21. Re4 {[%emt 0:00:46]} Rde8 {[%emt 0:12:30] The position is equal.} 22. Rfe1 {[%emt 0:01:27]} Rxe4 {[%emt 0:05:26]} 23. Rxe4 {[%emt 0:00:03]} Rxe4 {[%emt 0:00:34]} 24. Qxe4 {[%emt 0:00:14][%mdl 4096] Endgame KQ-KQ} Qd7 {[%emt 0:00:52] Against Qe8+} 25. Kf2 {[%emt 0:03:01]} Kc7 {[%emt 0:00:47]} 26. Ke3 {[%emt 0:02:36]} b6 {[%emt 0:01:38]} 27. g4 {[%emt 0:01:46]} h6 {[%emt 0:01:30]} 28. c3 {[%emt 0:06:44]} a6 {[%emt 0:05:39]} 29. h4 {[%emt 0:02:28]} b5 {[%emt 0:03:31]} 30. c4 {[%emt 0:01:28]} b4 {[%emt 0:03:04]} 31. Qf4+ {[%emt 0:02:46]} Kb7 {[%emt 0:00:50]} 32. Qe4 {[%emt 0:00:19]} Kc7 {[%emt 0:00:14]} 33. Kf3 {[%emt 0:00:39]} Kb7 {[%emt 0:00:50]} 34. Ke3 {[%emt 0:00:37] Weighted Error Value: White=0.17 (very precise) /Black=0.15 (very precise)} 1/2-1/2

[Event "Polish Youth G18 Championship 2023"]
[Site "Jastrzebia Gora"]
[Date "2023.03.19"]
[Round "9.6"]
[White "Uliasz, Katarzyna"]
[Black "Lukasik, Zuzanna"]
[Result "1/2-1/2"]
[ECO "A20"]
[WhiteElo "1670"]
[BlackElo "1781"]
[Annotator "NA RC COMBH"]
[PlyCount "162"]
[EventDate "2023.03.11"]
[EventType "swiss"]
[EventCountry "POL"]
[SourceTitle "playchess.com"]
[Source "ChessBase"]
[SourceQuality "1"]
[TimeControl "40/5400+30:1800+30"]

1. c4 {[%emt 0:00:05]} e5 {[%emt 0:01:14]} 2. g3 {[%emt 0:00:12]} d6 {[%emt 0:01:19]} 3. Bg2 {[%emt 0:02:13]} Nc6 {[%emt 0:02:44]} 4. Nc3 {[%emt 0:03:32]} g6 {[%emt 0:02:59]} 5. e4 {[%emt 0:02:36]} Bg7 {[%emt 0:02:15]} 6. Nge2 {[%emt 0:01:12]} Be6 {[%emt 0:04:04]} 7. d3 {[%emt 0:00:59]} Qd7 {[%emt 0:01:51]} 8. Nd5 {[%emt 0:07:34]} Nce7 {[%emt 0:05:10]} 9. h3 {[%emt 0:03:08]} c6 {[%emt 0:01:15]} 10. Ne3 {[%emt 0:01:59]} d5 {[%emt 0:04:59]} 11. exd5 {[%emt 0:05:40]} cxd5 {[%emt 0:00:09]} 12. d4 {[%emt 0:05:20]} Rd8 {[%emt 0:05:31]} 13. cxd5 {[%emt 0:05:54]} Nxd5 {[%emt 0:00:08]} 14. dxe5 {[%emt 0:06:24]} Bxe5 {[%emt 0:07:51]} 15. Nxd5 {[%emt 0:02:32]} Bxd5 {[%emt 0:00:19]} 16. Qxd5 {[%emt 0:02:12]} Qxd5 {[%emt 0:00:54]} 17. Bxd5 {[%emt 0:00:02]} Rxd5 {[%emt 0:00:10]} 18. Nf4 {[%emt 0:03:11]} Rd7 {[%emt 0:01:52]} 19. O-O {[%emt 0:01:34]} Ne7 {[%emt 0:05:32]} 20. Re1 {[%emt 0:04:10]} Bd4 {[%emt 0:01:14]} 21. Ne2 {[%emt 0:09:15]} Bg7 {[%emt 0:01:23]} 22. Nc3 {[%emt 0:03:18]} O-O {[%emt 0:01:40]} 23. Be3 {[%emt 0:01:26]} Nc6 {[%emt 0:01:45]} 24. Rad1 {[%emt 0:00:58]} Rfd8 {[%emt 0:02:04]} 25. Rxd7 {[%emt 0:00:13]} Rxd7 {[%emt 0:00:07]} 26. Bc5 {[%emt 0:01:41]} Rd8 {[%emt 0:01:53]} 27. Kg2 {[%emt 0:02:27]} b6 {[%emt 0:06:53]} 28. Be3 {[%emt 0:04:50]} Nb4 {[%emt 0:10:59]} 29. Bg5 {[%emt 0:04:36]} f6 {[%emt 0:00:54]} 30. Bc1 {[%emt 0:03:57]} Kf7 {[%emt 0:01:59]} 31. a3 {[%emt 0:01:43]} Nc2 {[%emt 0:03:54]} 32. Re2 {[%emt 0:02:18]} Nd4 {[%emt 0:00:42]} 33. Rd2 {[%emt 0:01:14]} Nc6 {[%emt 0:02:14]} 34. Rxd8 {[%emt 0:01:09]} Nxd8 {[%emt 0:00:06]} 35. Bf4 {[%emt 0:00:52]} Ke6 {[%emt 0:02:26]} 36. Nb5 {[%emt 0:02:29]} Nc6 {[%emt 0:00:15]} 37. b4 {[%emt 0:00:22]} f5 {[%emt 0:01:36]} 38. Nc7+ {[%emt 0:02:00]} Kd7 {[%emt 0:00:53]} 39. Na6 {[%emt 0:02:12]} Nd4 {[%emt 0:09:45]} 40. a4 {[%emt 0:00:00]} Bf8 {[%emt 0:00:00]} 41. b5 {[%emt 0:05:02]} Bd6 {[%emt 0:08:55]} 42. Be3 {[%emt 0:02:03]} Nc2 {[%emt 0:03:41]} 43. Bd2 {[%emt 0:01:42]} Ke6 {[%emt 0:02:43]} 44. Bf4 {[%emt 0:11:24]} Bxf4 {[%emt 0:01:47]} 45. gxf4 {[%emt 0:00:01]} Ne1+ {[%emt 0:02:10]} 46. Kg3 {[%emt 0:03:24]} Nd3 {[%emt 0:00:00]} 47. Nb8 {[%emt 0:02:33]} Nc5 {[%emt 0:01:02]} 48. Nc6 {[%emt 0:02:44]} Nxa4 {[%emt 0:03:59]} 49. Nxa7 {[%emt 0:00:06]} Nc3 {[%emt 0:01:12]} 50. Nc8 {[%emt 0:00:48]} Nxb5 {[%emt 0:01:20]} 51. Nxb6 {[%emt 0:00:28]} Nd4 {[%emt 0:01:02]} 52. h4 {[%emt 0:02:32]} h6 {[%emt 0:00:38]} 53. Nc4 {[%emt 0:02:08]} Kf6 {[%emt 0:06:05]} 54. Nd6 {[%emt 0:00:56]} Nc2 {[%emt 0:02:57]} 55. Ne8+ {[%emt 0:01:03]} Ke7 {[%emt 0:00:24]} 56. Nc7 {[%emt 0:00:12]} Nb4 {[%emt 0:01:06]} 57. Nb5 {[%emt 0:00:27]} Ke6 {[%emt 0:01:39]} 58. Nc3 {[%emt 0:00:34]} Nd3 {[%emt 0:00:29]} 59. Nb5 {[%emt 0:01:31]} Nc5 {[%emt 0:01:41]} 60. Nc7+ {[%emt 0:00:22]} Kf6 {[%emt 0:00:21]} 61. Nd5+ {[%emt 0:00:10]} Kf7 {[%emt 0:00:27]} 62. Nc7 {[%emt 0:00:31]} Ne4+ {[%emt 0:00:24]} 63. Kg2 {[%emt 0:00:46]} Kf6 {[%emt 0:00:24]} 64. Nd5+ {[%emt 0:00:22]} Ke6 {[%emt 0:00:10]} 65. Ne3 {[%emt 0:00:57]} h5 {[%emt 0:00:17]} 66. Nc4 {[%emt 0:00:39]} Kf6 {[%emt 0:00:25]} 67. Ne3 {[%emt 0:00:37]} Nd2 {[%emt 0:00:58]} 68. Nd5+ {[%emt 0:00:29]} Ke6 {[%emt 0:00:08]} 69. Ne3 {[%emt 0:00:25]} Kd6 {[%emt 0:00:40]} 70. Kg3 {[%emt 0:01:04]} Kc5 {[%emt 0:00:56]} 71. Nc2 {[%emt 0:01:00]} Kd5 {[%emt 0:00:25]} 72. f3 {[%emt 0:00:30]} Nc4 {[%emt 0:01:49]} 73. Kf2 {[%emt 0:00:29]} Nd6 {[%emt 0:00:33]} 74. Nb4+ {[%emt 0:00:24]} Ke6 {[%emt 0:00:19]} 75. Nc6 {[%emt 0:00:18]} Nb5 {[%emt 0:00:33]} 76. Ke3 {[%emt 0:00:38]} Nc3 {[%emt 0:00:41]} 77. Nd4+ {[%emt 0:01:15]} Kd5 {[%emt 0:00:26]} 78. Nc2 {[%emt 0:00:30]} Nb5 {[%emt 0:00:31]} 79. Nb4+ {[%emt 0:00:10]} Ke6 {[%emt 0:00:41]} 80. Nd3 {[%emt 0:00:08]} Nc7 {[%emt 0:00:23]} 81. Nb4 {[%emt 0:00:42]} Kf6 {[%emt 0:00:49]} 1/2-1/2

[Event "Polish Youth G18 Championship 2023"]
[Site "Jastrzebia Gora"]
[Date "2023.03.19"]
[Round "9.7"]
[White "Krzyzosiak, Marta"]
[Black "Krzyzosiak, Anna"]
[Result "1/2-1/2"]
[ECO "B50"]
[WhiteElo "1778"]
[BlackElo "1503"]
[Annotator "NA RC COMBH"]
[PlyCount "63"]
[EventDate "2023.03.11"]
[EventType "swiss"]
[EventCountry "POL"]
[SourceTitle "playchess.com"]
[Source "ChessBase"]
[SourceQuality "1"]
[TimeControl "40/5400+30:1800+30"]

1. e4 {[%emt 0:00:02]} c5 {[%emt 0:00:07]} 2. Nf3 {[%emt 0:00:12]} d6 {[%emt 0:00:07]} 3. Nc3 {[%emt 0:00:13]} Nf6 {[%emt 0:00:32]} 4. e5 {[%emt 0:00:16]} dxe5 {[%emt 0:01:40]} 5. Nxe5 {[%emt 0:00:24]} Nbd7 {[%emt 0:01:45]} 6. d4 {[%emt 0:01:39]} Nxe5 {[%emt 0:02:36]} 7. dxe5 {[%emt 0:00:19]} Qxd1+ {[%emt 0:00:33]} 8. Nxd1 {[%emt 0:00:29]} Nd5 {[%emt 0:01:01]} 9. Ne3 {[%emt 0:03:51]} Nxe3 {[%emt 0:04:29]} 10. Bxe3 {[%emt 0:00:12]} e6 {[%emt 0:00:41]} 11. Bb5+ {[%emt 0:07:42]} Bd7 {[%emt 0:00:51]} 12. Bxd7+ {[%emt 0:01:22]} Kxd7 {[%emt 0:00:10]} 13. O-O-O+ {[%emt 0:01:35]} Kc7 {[%emt 0:03:46]} 14. c4 {[%emt 0:04:57]} Be7 {[%emt 0:05:44]} 15. b3 {[%emt 0:03:33]} Rad8 {[%emt 0:03:33]} 16. Rxd8 {[%emt 0:04:14]} Rxd8 {[%emt 0:00:08]} 17. Rd1 {[%emt 0:00:11]} Rxd1+ {[%emt 0:02:23]} 18. Kxd1 {[%emt 0:00:01]} Kc6 {[%emt 0:00:16]} 19. Kc2 {[%emt 0:04:13]} h5 {[%emt 0:05:38]} 20. g3 {[%emt 0:04:37]} a6 {[%emt 0:04:24]} 21. a4 {[%emt 0:04:07]} b5 {[%emt 0:02:04]} 22. axb5+ {[%emt 0:00:14]} axb5 {[%emt 0:00:06]} 23. Kd3 {[%emt 0:04:31]} Bd8 {[%emt 0:02:26]} 24. Bd2 {[%emt 0:01:34]} Bc7 {[%emt 0:01:24]} 25. f4 {[%emt 0:01:30]} g6 {[%emt 0:01:14]} 26. h3 {[%emt 0:00:35]} Bd8 {[%emt 0:01:02]} 27. Be1 {[%emt 0:01:10]} Kb6 {[%emt 0:01:45]} 28. Bd2 {[%emt 0:02:43]} Kc6 {[%emt 0:00:47]} 29. Be1 {[%emt 0:01:09]} Kb6 {[%emt 0:00:16]} 30. Bd2 {[%emt 0:00:21]} Kc6 {[%emt 0:01:07]} 31. Be1 {[%emt 0:01:08]} Kb6 {[%emt 0:00:17]} 32. Ke4 1/2-1/2

[Event "Polish Youth G18 Championship 2023"]
[Site "Jastrzebia Gora"]
[Date "2023.03.19"]
[Round "9.8"]
[White "Arciszewska, Zuzanna"]
[Black "Mroz, Lena"]
[Result "1/2-1/2"]
[ECO "D02"]
[WhiteElo "1750"]
[BlackElo "1635"]
[Annotator "NA RC COMBH"]
[PlyCount "80"]
[EventDate "2023.03.11"]
[EventType "swiss"]
[EventCountry "POL"]
[SourceTitle "playchess.com"]
[Source "ChessBase"]
[SourceQuality "1"]
[TimeControl "40/5400+30:1800+30"]

1. d4 {[%emt 0:00:04]} d5 {[%emt 0:00:08]} 2. Nf3 {[%emt 0:00:16]} e6 {[%emt 0:00:21]} 3. e3 {[%emt 0:00:16]} c6 {[%emt 0:02:13]} 4. Bd3 {[%emt 0:00:22]} Nf6 {[%emt 0:02:09]} 5. Nbd2 {[%emt 0:00:42]} Nbd7 {[%emt 0:02:52]} 6. b3 {[%emt 0:02:08]} Bd6 {[%emt 0:02:14]} 7. Bb2 {[%emt 0:02:11]} Qc7 {[%emt 0:02:21]} 8. O-O {[%emt 0:10:41]} O-O {[%emt 0:06:04]} 9. c4 {[%emt 0:01:48]} Qb8 {[%emt 0:09:26]} 10. Rc1 {[%emt 0:03:45]} Re8 {[%emt 0:02:22]} 11. Qc2 {[%emt 0:06:02]} h6 {[%emt 0:04:29]} 12. e4 {[%emt 0:12:15]} dxe4 {[%emt 0:10:00]} 13. Nxe4 {[%emt 0:00:37]} Nxe4 {[%emt 0:03:31]} 14. Bxe4 {[%emt 0:00:11]} Nf6 {[%emt 0:02:34]} 15. Bd3 {[%emt 0:01:29]} Bd7 {[%emt 0:09:38]} 16. Rcd1 {[%emt 0:12:48]} Qc7 {[%emt 0:10:37]} 17. g3 {[%emt 0:10:27]} b6 {[%emt 0:03:49]} 18. Ne5 {[%emt 0:01:05]} c5 {[%emt 0:04:34]} 19. Nxd7 {[%emt 0:00:21]} Nxd7 {[%emt 0:00:13]} 20. Be4 {[%emt 0:05:35]} Rac8 {[%emt 0:01:28]} 21. Qd3 {[%emt 0:02:51]} Red8 {[%emt 0:07:51]} 22. Qf3 {[%emt 0:05:31]} cxd4 {[%emt 0:01:43]} 23. Bxd4 {[%emt 0:01:10]} Be5 {[%emt 0:01:55]} 24. Be3 {[%emt 0:03:02]} Nf6 {[%emt 0:02:02]} 25. Bc2 {[%emt 0:00:46]} b5 {[%emt 0:06:10]} 26. Bd3 {[%emt 0:01:58]} bxc4 {[%emt 0:00:04]} 27. Bxc4 {[%emt 0:00:13]} a5 {[%emt 0:00:46]} 28. Rc1 {[%emt 0:01:14]} Qb8 {[%emt 0:00:35]} 29. Qe2 {[%emt 0:02:10]} Nd5 {[%emt 0:01:35]} 30. Bd2 {[%emt 0:01:48]} Nb4 {[%emt 0:01:00]} 31. a3 {[%emt 0:01:36]} Nc6 {[%emt 0:00:06]} 32. Qe3 {[%emt 0:04:31]} Bf6 {[%emt 0:01:03]} 33. Bc3 {[%emt 0:02:01]} Bxc3 {[%emt 0:00:12]} 34. Qxc3 {[%emt 0:00:48]} Nd4 {[%emt 0:00:50]} 35. Qe3 {[%emt 0:02:21]} Qb7 {[%emt 0:00:20]} 36. f3 {[%emt 0:01:28]} Nf5 {[%emt 0:00:28]} 37. Qf2 {[%emt 0:01:35]} Nd4 {[%emt 0:00:17]} 38. Qe3 {[%emt 0:00:40]} Nf5 {[%emt 0:00:05]} 39. Qf2 {[%emt 0:00:16]} Nd4 {[%emt 0:00:04]} 40. Qe3 {[%emt 0:00:00]} Nf5 {[%emt 0:00:00]} 1/2-1/2

[Event "Polish Youth G18 Championship 2023"]
[Site "Jastrzebia Gora"]
[Date "2023.03.19"]
[Round "9.9"]
[White "Obrochta, Lena"]
[Black "Jedrzejko, Martyna"]
[Result "1-0"]
[ECO "C28"]
[WhiteElo "1673"]
[BlackElo "1629"]
[Annotator "NA RC COMBH"]
[PlyCount "73"]
[EventDate "2023.03.11"]
[EventType "swiss"]
[EventCountry "POL"]
[SourceTitle "playchess.com"]
[Source "ChessBase"]
[SourceQuality "1"]
[TimeControl "40/5400+30:1800+30"]

1. e4 {[%emt 0:00:03]} e5 {[%emt 0:00:08]} 2. Nc3 {[%emt 0:00:15]} Nf6 {[%emt 0:00:46]} 3. Bc4 {[%emt 0:00:55]} Nc6 {[%emt 0:00:32]} 4. d3 {[%emt 0:00:36]} Na5 {[%emt 0:01:19]} 5. Nge2 {[%emt 0:03:51]} Bc5 {[%emt 0:11:39]} 6. O-O {[%emt 0:01:35]} h6 {[%emt 0:02:21]} 7. Ng3 {[%emt 0:02:59]} d6 {[%emt 0:02:12]} 8. Na4 {[%emt 0:02:57]} a6 {[%emt 0:02:03]} 9. Nxc5 {[%emt 0:01:43]} dxc5 {[%emt 0:00:03]} 10. Qe2 {[%emt 0:01:43]} O-O {[%emt 0:01:40]} 11. a3 {[%emt 0:02:24]} Nxc4 {[%emt 0:01:48]} 12. dxc4 {[%emt 0:00:04]} Qe7 {[%emt 0:00:39]} 13. Bd2 {[%emt 0:05:26]} Bd7 {[%emt 0:07:10]} 14. Rae1 {[%emt 0:04:05]} Rfe8 {[%emt 0:09:59]} 15. f4 {[%emt 0:11:59]} exf4 {[%emt 0:03:51]} 16. Rxf4 {[%emt 0:01:22]} Qe5 {[%emt 0:03:14]} 17. Ref1 {[%emt 0:07:44]} Qxb2 {[%emt 0:09:14]} 18. Rxf6 {[%emt 0:02:13]} gxf6 {[%emt 0:00:11]} 19. Bxh6 {[%emt 0:00:50]} Qd4+ {[%emt 0:02:37]} 20. Kh1 {[%emt 0:02:36]} Qe5 {[%emt 0:05:17]} 21. Bf4 {[%emt 0:04:04]} Qe6 {[%emt 0:06:58]} 22. h3 {[%emt 0:01:20]} f5 {[%emt 0:02:37]} 23. e5 {[%emt 0:05:02]} Qg6 {[%emt 0:02:44]} 24. Qf2 {[%emt 0:02:32]} b6 {[%emt 0:02:28]} 25. Ne2 {[%emt 0:00:47]} Bc6 {[%emt 0:07:42]} 26. Bg3 {[%emt 0:00:41]} Be4 {[%emt 0:05:35]} 27. Nf4 {[%emt 0:00:57]} Qh6 {[%emt 0:01:15]} 28. Nd5 {[%emt 0:03:23]} Qxh3+ {[%emt 0:02:57]} 29. Kg1 {[%emt 0:00:04]} Qh6 {[%emt 0:00:17]} 30. Nf6+ {[%emt 0:00:17]} Kh8 {[%emt 0:01:18]} 31. Nxe4 {[%emt 0:08:08]} fxe4 {[%emt 0:00:02]} 32. Re1 {[%emt 0:01:19]} Qg6 {[%emt 0:02:13]} 33. Bh4 {[%emt 0:01:53]} Re6 {[%emt 0:01:42]} 34. Re3 {[%emt 0:03:52]} Qh5 {[%emt 0:02:23]} 35. Rh3 {[%emt 0:01:07]} Qd1+ {[%emt 0:00:31]} 36. Kh2 {[%emt 0:00:08]} Rg6 {[%emt 0:00:29]} 37. Bf6+ {[%emt 0:00:11]} 1-0

[Event "Polish Youth G18 Championship 2023"]
[Site "Jastrzebia Gora"]
[Date "2023.03.19"]
[Round "9.10"]
[White "Bialek, Alicja"]
[Black "Pietrzak, Emilia"]
[Result "0-1"]
[ECO "B32"]
[WhiteElo "1576"]
[BlackElo "1424"]
[Annotator "NA RC COMBH"]
[PlyCount "44"]
[EventDate "2023.03.11"]
[EventType "swiss"]
[EventCountry "POL"]
[SourceTitle "playchess.com"]
[Source "ChessBase"]
[SourceQuality "1"]
[TimeControl "40/5400+30:1800+30"]

1. e4 {[%emt 0:00:03]} c5 {[%emt 0:00:04]} 2. Nf3 {[%emt 0:00:05]} Nc6 {[%emt 0:00:03]} 3. d4 {[%emt 0:00:04]} cxd4 {[%emt 0:00:07]} 4. Nxd4 {[%emt 0:00:13]} Qb6 {[%emt 0:00:13]} 5. Nxc6 {[%emt 0:19:19]} bxc6 {[%emt 0:02:15]} 6. Bd3 {[%emt 0:01:58]} Nf6 {[%emt 0:04:14]} 7. O-O {[%emt 0:03:27]} e5 {[%emt 0:04:40]} 8. Nd2 {[%emt 0:04:15]} d5 {[%emt 0:07:39]} 9. Qe2 {[%emt 0:16:40]} Bd6 {[%emt 0:04:48]} 10. Kh1 {[%emt 0:20:43]} O-O {[%emt 0:09:25]} 11. exd5 {[%emt 0:15:16]} cxd5 {[%emt 0:03:05]} 12. c4 {[%emt 0:00:07]} e4 {[%emt 0:10:38]} 13. Bc2 {[%emt 0:02:44]} Bg4 {[%emt 0:01:14]} 14. f3 {[%emt 0:02:21]} exf3 {[%emt 0:02:03]} 15. Nxf3 {[%emt 0:04:15]} Rfe8 {[%emt 0:02:39]} 16. Qd3 {[%emt 0:00:16]} dxc4 {[%emt 0:00:44]} 17. Qxc4 {[%emt 0:03:05]} Rac8 {[%emt 0:01:25]} 18. Bxh7+ {[%emt 0:00:31]} Kh8 {[%emt 0:10:31]} 19. Qxf7 {[%emt 0:02:23]} Bxf3 {[%emt 0:02:40]} 20. gxf3 {[%emt 0:01:54]} Re2 {[%emt 0:01:35]} 21. f4 {[%emt 0:00:46]} Qc6+ {[%emt 0:00:46]} 22. Kg1 {[%emt 0:00:27]} Qg2# {[%emt 0:00:07]} 0-1

[Event "Polish Youth G18 Championship 2023"]
[Site "Jastrzebia Gora"]
[Date "2023.03.19"]
[Round "9.11"]
[White "Bartoszek, Julia"]
[Black "Szczotka, Matylda"]
[Result "0-1"]
[ECO "C97"]
[WhiteElo "1344"]
[BlackElo "1451"]
[Annotator "NA RC COMBH"]
[PlyCount "86"]
[EventDate "2023.03.11"]
[EventType "swiss"]
[EventCountry "POL"]
[SourceTitle "playchess.com"]
[Source "ChessBase"]
[SourceQuality "1"]
[TimeControl "40/5400+30:1800+30"]

1. e4 {[%emt 0:00:07]} e5 {[%emt 0:00:04]} 2. Nf3 {[%emt 0:00:07]} Nc6 {[%emt 0:00:03]} 3. Bb5 {[%emt 0:00:11]} a6 {[%emt 0:00:05]} 4. Ba4 {[%emt 0:00:09]} Nf6 {[%emt 0:00:06]} 5. O-O {[%emt 0:00:27]} b5 {[%emt 0:00:07]} 6. Bb3 {[%emt 0:00:08]} Be7 {[%emt 0:00:11]} 7. Re1 {[%emt 0:01:24]} d6 {[%emt 0:00:36]} 8. c3 {[%emt 0:01:41]} O-O {[%emt 0:01:35]} 9. h3 {[%emt 0:00:44]} Na5 {[%emt 0:02:59]} 10. Bc2 {[%emt 0:01:16]} c5 {[%emt 0:00:25]} 11. d4 {[%emt 0:02:39]} Qc7 {[%emt 0:00:49]} 12. dxe5 {[%emt 0:03:24]} dxe5 {[%emt 0:00:11]} 13. Qe2 {[%emt 0:03:00]} Re8 {[%emt 0:02:11]} 14. Bg5 {[%emt 0:03:02]} Nh5 {[%emt 0:12:34]} 15. Be3 {[%emt 0:01:34]} Nc4 {[%emt 0:04:46]} 16. Bc1 {[%emt 0:02:39]} g6 {[%emt 0:08:54]} 17. b3 {[%emt 0:04:14]} Nb6 {[%emt 0:00:39]} 18. Be3 {[%emt 0:02:35]} Bb7 {[%emt 0:09:13]} 19. Nbd2 {[%emt 0:04:45]} Bf8 {[%emt 0:04:53]} 20. Rad1 {[%emt 0:03:22]} Nd7 {[%emt 0:06:07]} 21. c4 {[%emt 0:02:47]} b4 {[%emt 0:02:35]} 22. Nf1 {[%emt 0:01:58]} Ndf6 {[%emt 0:03:14]} 23. Bg5 {[%emt 0:02:59]} h6 {[%emt 0:08:38]} 24. Bc1 {[%emt 0:03:03]} Bg7 {[%emt 0:07:21]} 25. N3h2 {[%emt 0:01:19]} Nf4 {[%emt 0:08:42]} 26. Bxf4 {[%emt 0:03:15]} exf4 {[%emt 0:00:01]} 27. Nd2 {[%emt 0:01:55]} Rad8 {[%emt 0:03:30]} 28. f3 {[%emt 0:02:50]} Nh5 {[%emt 0:02:01]} 29. Ndf1 {[%emt 0:01:24]} Bd4+ {[%emt 0:03:38]} 30. Kh1 {[%emt 0:00:21]} Bc8 {[%emt 0:05:36]} 31. Rd3 {[%emt 0:02:55]} Qe7 {[%emt 0:02:29]} 32. Ng4 {[%emt 0:00:48]} Kg7 {[%emt 0:00:43]} 33. e5 {[%emt 0:02:05]} Qh4 {[%emt 0:00:57]} 34. Nf6 {[%emt 0:02:16]} Rxe5 {[%emt 0:00:34]} 35. Nxh5+ {[%emt 0:00:36]} gxh5 {[%emt 0:00:42]} 36. Qxe5+ {[%emt 0:02:42]} Bxe5 {[%emt 0:00:03]} 37. Rxe5 {[%emt 0:00:28]} Rg8 {[%emt 0:01:11]} 38. Rdd5 {[%emt 0:01:42]} Qf2 {[%emt 0:00:28]} 39. Bd3 {[%emt 0:01:37]} Kh8 {[%emt 0:00:21]} 40. Re2 {[%emt 0:00:00]} Qxf1+ {[%emt 0:00:00]} 41. Kh2 {[%emt 0:01:03]} Bxh3 {[%emt 0:05:06]} 42. Rd2 {[%emt 0:02:55]} Rxg2+ {[%emt 0:00:32]} 43. Kxh3 {[%emt 0:00:16]} Qh1# {[%emt 0:00:04]} 0-1

[Event "Polish Youth G18 Championship 2023"]
[Site "Jastrzebia Gora"]
[Date "2023.03.19"]
[Round "9.12"]
[White "Gaczol, Julia"]
[Black "Lochina, Justyna"]
[Result "1/2-1/2"]
[ECO "B45"]
[WhiteElo "1419"]
[BlackElo "1645"]
[Annotator "NA RC COMBH"]
[PlyCount "70"]
[EventDate "2023.03.11"]
[EventType "swiss"]
[EventCountry "POL"]
[SourceTitle "playchess.com"]
[Source "ChessBase"]
[SourceQuality "1"]
[TimeControl "40/5400+30:1800+30"]

1. e4 {[%emt 0:00:02]} c5 {[%emt 0:00:08]} 2. Nf3 {[%emt 0:00:22]} e6 {[%emt 0:00:28]} 3. d4 {[%emt 0:00:21]} cxd4 {[%emt 0:00:17]} 4. Nxd4 {[%emt 0:00:14]} Nc6 {[%emt 0:00:39]} 5. Nc3 {[%emt 0:00:34]} d6 {[%emt 0:01:23]} 6. g3 {[%emt 0:00:11]} Nf6 {[%emt 0:06:02]} 7. Bg2 {[%emt 0:00:08]} Qc7 {[%emt 0:07:26]} 8. O-O {[%emt 0:00:36]} Be7 {[%emt 0:02:56]} 9. Ndb5 {[%emt 0:11:20]} Qb8 {[%emt 0:04:56]} 10. a4 {[%emt 0:09:35]} O-O {[%emt 0:04:19]} 11. Be3 {[%emt 0:08:22]} Rd8 {[%emt 0:05:42]} 12. Qe2 {[%emt 0:06:51]} Bd7 {[%emt 0:06:32]} 13. a5 {[%emt 0:09:45]} Nb4 {[%emt 0:08:07]} 14. Rfd1 {[%emt 0:06:24]} Bc6 {[%emt 0:03:34]} 15. Bf4 {[%emt 0:03:24]} e5 {[%emt 0:07:22]} 16. Bg5 {[%emt 0:01:56]} Na6 {[%emt 0:12:22]} 17. Bxf6 {[%emt 0:04:58]} Bxf6 {[%emt 0:00:34]} 18. Nd5 {[%emt 0:01:02]} Bxd5 {[%emt 0:01:55]} 19. Rxd5 {[%emt 0:00:45]} Be7 {[%emt 0:03:33]} 20. c3 {[%emt 0:08:25]} Nc7 {[%emt 0:05:13]} 21. Nxc7 {[%emt 0:00:45]} Qxc7 {[%emt 0:00:07]} 22. f4 {[%emt 0:01:55]} Rac8 {[%emt 0:02:14]} 23. Qb5 {[%emt 0:01:39]} a6 {[%emt 0:06:23]} 24. Qb4 {[%emt 0:00:55]} Rb8 {[%emt 0:02:21]} 25. Bf1 {[%emt 0:02:03]} f6 {[%emt 0:02:52]} 26. Ra3 {[%emt 0:07:41]} b6 {[%emt 0:02:39]} 27. axb6 {[%emt 0:00:58]} Rxb6 {[%emt 0:00:15]} 28. Qc4 {[%emt 0:01:30]} Qxc4 {[%emt 0:01:59]} 29. Bxc4 {[%emt 0:00:06]} Kf8 {[%emt 0:00:27]} 30. b4 {[%emt 0:00:15]} Rc8 {[%emt 0:02:05]} 31. Bd3 {[%emt 0:01:56]} Rbc6 {[%emt 0:00:21]} 32. c4 {[%emt 0:01:54]} Rxc4 {[%emt 0:00:29]} 33. Bxc4 {[%emt 0:00:21]} Rxc4 {[%emt 0:00:04]} 34. Rb3 {[%emt 0:02:15]} Rxe4 {[%emt 0:00:13]} 35. f5 {[%emt 0:01:11]} Rc4 {[%emt 0:00:42]} 1/2-1/2